Workbook

Sheet Sheet1
A1: month | B1: EC County Labor Force | C1: EC Employment | D1: EC Unemployment | E1: EC Unemployment Rate | F1: Chippewa Labor Force | G1: Chippewa Employment | H1: Chippewa Unemployment | I1: Chippewa Unemployment Rate | J1: WI Unemployment Rate | K1: US Unemployment Rate
A2: 1993-01-01 | B2: 44538 | C2: 41709 | D2: =B2-C2 -> 2829 | E2: =(D2/B2)*100 -> 6.351879294 | F2: 26823 | G2: 24499 | H2: =F2-G2 -> 2324 | I2: =(H2/F2)*100 -> 8.664206092 | J2: 5.3 | K2: 8
A3: 1993-02-01 | B3: 45365 | C3: 42433 | D3: =B3-C3 -> 2932 | E3: =(D3/B3)*100 -> 6.463132371 | F3: 27452 | G3: 24925 | H3: =F3-G3 -> 2527 | I3: =(H3/F3)*100 -> 9.205158094 | J3: 5.6 | K3: 7.8
A4: 1993-03-01 | B4: 44991 | C4: 42497 | D4: =B4-C4 -> 2494 | E4: =(D4/B4)*100 -> 5.543330888 | F4: 27349 | G4: 24962 | H4: =F4-G4 -> 2387 | I4: =(H4/F4)*100 -> 8.727924239 | J4: 5.2 | K4: 7.4
A5: 1993-04-01 | B5: 45667 | C5: 43238 | D5: 2429 | E5: 5.318939278 | F5: 27497 | G5: 25399 | H5: 2098 | I5: 7.629923264 | J5: 4.8 | K5: 6.9
A6: 1993-05-01 | B6: 45961 | C6: 43765 | D6: 2196 | E6: 4.777963926 | F6: 27383 | G6: 25707 | H6: 1676 | I6: 6.120585765 | J6: 4.4 | K6: 6.8
A7: 1993-06-01 | B7: 46462 | C7: 43821 | D7: 2641 | E7: 5.684215057 | F7: 27403 | G7: 25740 | H7: 1663 | I7: 6.068678612 | J7: 4.8 | K7: 7.2
A8: 1993-07-01 | B8: 47291 | C8: 45050 | D8: 2241 | E8: 4.738745216 | F8: 27857 | G8: 26462 | H8: 1395 | I8: 5.007717988 | J8: 4.3 | K8: 7
A9: 1993-08-01 | B9: 47291 | C9: 45078 | D9: 2213 | E9: 4.679537333 | F9: 27658 | G9: 26479 | H9: 1179 | I9: 4.262781112 | J9: 4.1 | K9: 6.6
A10: 1993-09-01 | B10: 46426 | C10: 44464 | D10: 1962 | E10: 4.226080214 | F10: 27154 | G10: 26119 | H10: 1035 | I10: 3.811593135 | J10: 3.8 | K10: 6.4
A11: 1993-10-01 | B11: 47130 | C11: 45124 | D11: 2006 | E11: 4.256312328 | F11: 27606 | G11: 26506 | H11: 1100 | I11: 3.98464102 | J11: 3.8 | K11: 6.4
A12: 1993-11-01 | B12: 47584 | C12: 45511 | D12: 2073 | E12: 4.356506389 | F12: 28128 | G12: 26734 | H12: 1394 | I12: 4.955915813 | J12: 4 | K12: 6.2
A13: 1993-12-01 | B13: 47141 | C13: 45166 | D13: 1975 | E13: 4.189558983 | F13: 28314 | G13: 26530 | H13: 1784 | I13: 6.300769937 | J13: 4.1 | K13: 6.1
A14: 1994-01-01 | B14: 46548 | C14: 44229 | D14: 2319 | E14: 4.981954112 | F14: 28254 | G14: 25925 | H14: 2329 | I14: 8.243080626 | J14: 5.3 | K14: 7.3
A15: 1994-02-01 | B15: 47367 | C15: 44894 | D15: 2473 | E15: 5.220934406 | F15: 28697 | G15: 26314 | H15: 2383 | I15: 8.304003903 | J15: 5.8 | K15: 7.1
A16: 1994-03-01 | B16: 47084 | C16: 44601 | D16: 2483 | E16: 5.273553649 | F16: 28481 | G16: 26142 | H16: 2339 | I16: 8.212492539 | J16: 5.6 | K16: 6.8
A17: 1994-04-01 | B17: 47407 | C17: 45383 | D17: 2024 | E17: 4.26941169 | F17: 28390 | G17: 26600 | H17: 1790 | I17: 6.305036985 | J17: 4.7 | K17: 6.2
A18: 1994-05-01 | B18: 47962 | C18: 46104 | D18: 1858 | E18: 3.873900171 | F18: 28234 | G18: 27023 | H18: 1211 | I18: 4.28915492 | J18: 4.1 | K18: 5.9
A19: 1994-06-01 | B19: 48211 | C19: 45961 | D19: 2250 | E19: 4.666984713 | F19: 28200 | G19: 26940 | H19: 1260 | I19: 4.468085106 | J19: 4.6 | K19: 6.2
A20: 1994-07-01 | B20: 48755 | C20: 46857 | D20: 1898 | E20: 3.892934058 | F20: 28700 | G20: 27464 | H20: 1236 | I20: 4.306620209 | J20: 4.2 | K20: 6.2
A21: 1994-08-01 | B21: 47997 | C21: 46139 | D21: 1858 | E21: 3.871075276 | F21: 28131 | G21: 27044 | H21: 1087 | I21: 3.864064555 | J21: 4 | K21: 5.9
A22: 1994-09-01 | B22: 48430 | C22: 46785 | D22: 1645 | E22: 3.396654966 | F22: 28321 | G22: 27422 | H22: 899 | I22: 3.174322941 | J22: 3.5 | K22: 5.6
A23: 1994-10-01 | B23: 49113 | C23: 47186 | D23: 1927 | E23: 3.923604748 | F23: 29456 | G23: 27658 | H23: 1798 | I23: 6.104019555 | J23: 3.4 | K23: 5.4
A24: 1994-11-01 | B24: 49072 | C24: 47446 | D24: 1626 | E24: 3.313498533 | F24: 29302 | G24: 27810 | H24: 1492 | I24: 5.091802607 | J24: 3.3 | K24: 5.3
A25: 1994-12-01 | B25: 48228 | C25: 46676 | D25: 1552 | E25: 3.218047607 | F25: 28765 | G25: 27359 | H25: 1406 | I25: 4.887884582 | J25: 3.2 | K25: 5.1
A26: 1995-01-01 | B26: 47514 | C26: 45679 | D26: 1835 | E26: 3.862019615 | F26: 28693 | G26: 26734 | H26: 1959 | I26: 6.827449204 | J26: 4.2 | K26: 6.2
A27: 1995-02-01 | B27: 48451 | C27: 46535 | D27: 1916 | E27: 3.954510743 | F27: 29241 | G27: 27236 | H27: 2005 | I27: 6.856810643 | J27: 4.5 | K27: 5.9
A28: 1995-03-01 | B28: 48457 | C28: 46439 | D28: 2018 | E28: 4.164516994 | F28: 29244 | G28: 27179 | H28: 2065 | I28: 7.061277527 | J28: 4.6 | K28: 5.7
A29: 1995-04-01 | B29: 48989 | C29: 47275 | D29: 1714 | E29: 3.498744616 | F29: 29346 | G29: 27669 | H29: 1677 | I29: 5.714577796 | J29: 4.2 | K29: 5.6
A30: 1995-05-01 | B30: 48949 | C30: 47459 | D30: 1490 | E30: 3.043984555 | F30: 28960 | G30: 27776 | H30: 1184 | I30: 4.08839779 | J30: 3.7 | K30: 5.5
A31: 1995-06-01 | B31: 49293 | C31: 47447 | D31: 1846 | E31: 3.744953645 | F31: 28906 | G31: 27768 | H31: 1138 | I31: 3.936898914 | J31: 4 | K31: 5.8
A32: 1995-07-01 | B32: 49563 | C32: 48072 | D32: 1491 | E32: 3.008292476 | F32: 29085 | G32: 28136 | H32: 949 | I32: 3.262850266 | J32: 3.6 | K32: 5.9
A33: 1995-08-01 | B33: 49460 | C33: 47933 | D33: 1527 | E33: 3.087343308 | F33: 28953 | G33: 28054 | H33: 899 | I33: 3.105032294 | J33: 3.4 | K33: 5.6
A34: 1995-09-01 | B34: 48961 | C34: 47655 | D34: 1306 | E34: 2.667429178 | F34: 28709 | G34: 27890 | H34: 819 | I34: 2.852763942 | J34: 3.1 | K34: 5.4
A35: 1995-10-01 | B35: 49774 | C35: 48568 | D35: 1206 | E35: 2.422951742 | F35: 29282 | G35: 28425 | H35: 857 | I35: 2.926712656 | J35: 3 | K35: 5.2
A36: 1995-11-01 | B36: 49756 | C36: 48379 | D36: 1377 | E36: 2.767505426 | F36: 29515 | G36: 28316 | H36: 1199 | I36: 4.062341182 | J36: 3.4 | K36: 5.3
A37: 1995-12-01 | B37: 49606 | C37: 48118 | D37: 1488 | E37: 2.999637141 | F37: 29646 | G37: 28162 | H37: 1484 | I37: 5.005734332 | J37: 3.3 | K37: 5.2
A38: 1996-01-01 | B38: 48160 | C38: 46234 | D38: 1926 | E38: 3.999169435 | F38: 28935 | G38: 26919 | H38: 2016 | I38: 6.967340591 | J38: 4.4 | K38: 6.3
A39: 1996-02-01 | B39: 49417 | C39: 47429 | D39: 1988 | E39: 4.022907097 | F39: 29601 | G39: 27615 | H39: 1986 | I39: 6.709232796 | J39: 4.6 | K39: 6
A40: 1996-03-01 | B40: 49613 | C40: 47519 | D40: 2094 | E40: 4.22066797 | F40: 29679 | G40: 27667 | H40: 2012 | I40: 6.779204151 | J40: 4.5 | K40: 5.8
A41: 1996-04-01 | B41: 50403 | C41: 48576 | D41: 1827 | E41: 3.624784239 | F41: 30019 | G41: 28283 | H41: 1736 | I41: 5.783004097 | J41: 4 | K41: 5.4
A42: 1996-05-01 | B42: 50508 | C42: 48809 | D42: 1699 | E42: 3.363823553 | F42: 29604 | G42: 28418 | H42: 1186 | I42: 4.006215376 | J42: 3.6 | K42: 5.4
A43: 1996-06-01 | B43: 50822 | C43: 48812 | D43: 2010 | E43: 3.954980127 | F43: 29722 | G43: 28420 | H43: 1302 | I43: 4.3805935 | J43: 3.8 | K43: 5.5
A44: 1996-07-01 | B44: 51137 | C44: 49410 | D44: 1727 | E44: 3.377202417 | F44: 29804 | G44: 28768 | H44: 1036 | I44: 3.476043484 | J44: 3.6 | K44: 5.6
A45: 1996-08-01 | B45: 50714 | C45: 49156 | D45: 1558 | E45: 3.072129984 | F45: 29505 | G45: 28621 | H45: 884 | I45: 2.996102356 | J45: 3.1 | K45: 5.1
A46: 1996-09-01 | B46: 51041 | C46: 49736 | D46: 1305 | E46: 2.556768088 | F46: 29726 | G46: 28958 | H46: 768 | I46: 2.583596851 | J46: 2.9 | K46: 5
A47: 1996-10-01 | B47: 51645 | C47: 50442 | D47: 1203 | E47: 2.329363927 | F47: 30122 | G47: 29369 | H47: 753 | I47: 2.499834008 | J47: 2.7 | K47: 4.9
A48: 1996-11-01 | B48: 51715 | C48: 50269 | D48: 1446 | E48: 2.796093977 | F48: 30343 | G48: 29268 | H48: 1075 | I48: 3.542827011 | J48: 3.1 | K48: 5
A49: 1996-12-01 | B49: 51317 | C49: 49730 | D49: 1587 | E49: 3.092542432 | F49: 30383 | G49: 28955 | H49: 1428 | I49: 4.699996709 | J49: 3.2 | K49: 5
A50: 1997-01-01 | B50: 50313 | C50: 48262 | D50: 2051 | E50: 4.076481228 | F50: 30012 | G50: 28094 | H50: 1918 | I50: 6.390777023 | J50: 4.3 | K50: 5.9
A51: 1997-02-01 | B51: 51486 | C51: 49396 | D51: 2090 | E51: 4.059355941 | F51: 30711 | G51: 28754 | H51: 1957 | I51: 6.372309596 | J51: 4.5 | K51: 5.7
A52: 1997-03-01 | B52: 51864 | C52: 49734 | D52: 2130 | E52: 4.106894956 | F52: 30903 | G52: 28951 | H52: 1952 | I52: 6.316538847 | J52: 4.5 | K52: 5.5
A53: 1997-04-01 | B53: 52163 | C53: 50332 | D53: 1831 | E53: 3.510150873 | F53: 30866 | G53: 29299 | H53: 1567 | I53: 5.076783516 | J53: 3.8 | K53: 4.8
A54: 1997-05-01 | B54: 52222 | C54: 50691 | D54: 1531 | E54: 2.931714603 | F54: 30423 | G54: 29508 | H54: 915 | I54: 3.00759294 | J54: 3.2 | K54: 4.7
A55: 1997-06-01 | B55: 52433 | C55: 50538 | D55: 1895 | E55: 3.614136136 | F55: 30490 | G55: 29419 | H55: 1071 | I55: 3.512627091 | J55: 3.7 | K55: 5.2
A56: 1997-07-01 | B56: 52733 | C56: 51205 | D56: 1528 | E56: 2.897616293 | F56: 30660 | G56: 29806 | H56: 854 | I56: 2.785388128 | J56: 3.3 | K56: 5
A57: 1997-08-01 | B57: 52321 | C57: 50804 | D57: 1517 | E57: 2.899409415 | F57: 30357 | G57: 29574 | H57: 783 | I57: 2.579306256 | J57: 3.1 | K57: 4.8
A58: 1997-09-01 | B58: 52326 | C58: 50934 | D58: 1392 | E58: 2.660245385 | F58: 30382 | G58: 29648 | H58: 734 | I58: 2.415904154 | J58: 2.9 | K58: 4.7
A59: 1997-10-01 | B59: 52861 | C59: 51663 | D59: 1198 | E59: 2.266321106 | F59: 30758 | G59: 30073 | H59: 685 | I59: 2.227062878 | J59: 2.7 | K59: 4.4
A60: 1997-11-01 | B60: 53020 | C60: 51700 | D60: 1320 | E60: 2.489626556 | F60: 31071 | G60: 30095 | H60: 976 | I60: 3.141192752 | J60: 2.9 | K60: 4.3
A61: 1997-12-01 | B61: 52450 | C61: 51007 | D61: 1443 | E61: 2.751191611 | F61: 31083 | G61: 29692 | H61: 1391 | I61: 4.475115015 | J61: 3 | K61: 4.4
A62: 1998-01-01 | B62: 50711 | C62: 48868 | D62: 1843 | E62: 3.63431997 | F62: 30269 | G62: 28539 | H62: 1730 | I62: 5.715418415 | J62: 3.8 | K62: 5.2
A63: 1998-02-01 | B63: 51992 | C63: 50049 | D63: 1943 | E63: 3.737113402 | F63: 31076 | G63: 29229 | H63: 1847 | I63: 5.943493371 | J63: 4 | K63: 5
A64: 1998-03-01 | B64: 52090 | C64: 50078 | D64: 2012 | E64: 3.862545594 | F64: 31125 | G64: 29246 | H64: 1879 | I64: 6.036947791 | J64: 4.2 | K64: 5
A65: 1998-04-01 | B65: 52281 | C65: 50872 | D65: 1409 | E65: 2.69505174 | F65: 30762 | G65: 29708 | H65: 1054 | I65: 3.426305182 | J65: 3 | K65: 4.1
A66: 1998-05-01 | B66: 52709 | C66: 51364 | D66: 1345 | E66: 2.551746381 | F66: 30839 | G66: 29996 | H66: 843 | I66: 2.733551672 | J66: 2.9 | K66: 4.2
A67: 1998-06-01 | B67: 52883 | C67: 51088 | D67: 1795 | E67: 3.394285498 | F67: 30846 | G67: 29836 | H67: 1010 | I67: 3.274330545 | J67: 3.5 | K67: 4.7
A68: 1998-07-01 | B68: 53215 | C68: 51898 | D68: =B68-C68 -> 1317 | E68: =(D68/B68)*100 -> 2.474866109 | F68: 31121 | G68: 30309 | H68: =F68-G68 -> 812 | I68: =(H68/F68)*100 -> 2.609170656 | J68: 3.3 | K68: 4.7
A69: 1998-08-01 | B69: 52492 | C69: 51076 | D69: 1416 | E69: 2.697553913 | F69: 30677 | G69: 29827 | H69: 850 | I69: 2.770805489 | J69: 3.1 | K69: 4.5
A70: 1998-09-01 | B70: 52652 | C70: 51356 | D70: 1296 | E70: 2.461444959 | F70: 30760 | G70: 29992 | H70: 768 | I70: 2.496749025 | J70: 2.9 | K70: 4.4
A71: 1998-10-01 | B71: 53064 | C71: 51884 | D71: 1180 | E71: 2.223729836 | F71: 31060 | G71: 30301 | H71: 759 | I71: 2.443657437 | J71: 2.8 | K71: 4.2
A72: 1998-11-01 | B72: 52823 | C72: 51536 | D72: 1287 | E72: 2.436438673 | F72: 31066 | G72: 30097 | H72: 969 | I72: 3.119165647 | J72: 2.9 | K72: 4.1
A73: 1998-12-01 | B73: 52525 | C73: 51212 | D73: 1313 | E73: 2.499762018 | F73: 31152 | G73: 29908 | H73: 1244 | I73: 3.993323061 | J73: 2.9 | K73: 4
A74: 1999-01-01 | B74: 51587 | C74: 50007 | D74: 1580 | E74: 3.062787136 | F74: 30850 | G74: 29135 | H74: 1715 | I74: 5.559157212 | J74: 3.8 | K74: 4.8
A75: 1999-02-01 | B75: 52503 | C75: 50776 | D75: 1727 | E75: 3.289335847 | F75: 31384 | G75: 29584 | H75: 1800 | I75: 5.735406577 | J75: 4.1 | K75: 4.7
A76: 1999-03-01 | B76: 52459 | C76: 50892 | D76: 1567 | E76: 2.987094683 | F76: 31280 | G76: 29651 | H76: 1629 | I76: 5.207800512 | J76: 3.8 | K76: 4.4
A77: 1999-04-01 | B77: 52960 | C77: 51139 | D77: 1821 | E77: 3.438444109 | F77: 31281 | G77: 29795 | H77: 1486 | I77: 4.750487516 | J77: 3.2 | K77: 4.1
A78: 1999-05-01 | B78: 53098 | C78: 51645 | D78: 1453 | E78: 2.736449584 | F78: 31168 | G78: 30090 | H78: 1078 | I78: 3.458675565 | J78: 2.8 | K78: 4
A79: 1999-06-01 | B79: 53013 | C79: 51361 | D79: 1652 | E79: 3.116216777 | F79: 31067 | G79: 29925 | H79: 1142 | I79: 3.675926224 | J79: 3.3 | K79: 4.5
A80: 1999-07-01 | B80: 53301 | C80: 51993 | D80: 1308 | E80: 2.45398773 | F80: 31144 | G80: 30292 | H80: 852 | I80: 2.735679425 | J80: 3 | K80: 4.5
A81: 1999-08-01 | B81: 52393 | C81: 51089 | D81: 1304 | E81: 2.488882103 | F81: 30498 | G81: 29767 | H81: 731 | I81: 2.396878484 | J81: 2.7 | K81: 4.2
A82: 1999-09-01 | B82: 52398 | C82: 51382 | D82: 1016 | E82: 1.939005306 | F82: 30536 | G82: 29936 | H82: 600 | I82: 1.964893896 | J82: 2.4 | K82: 4.1
A83: 1999-10-01 | B83: 53152 | C83: 52128 | D83: 1024 | E83: 1.926550271 | F83: 30995 | G83: 30371 | H83: 624 | I83: 2.01322794 | J83: 2.4 | K83: 3.8
A84: 1999-11-01 | B84: 53152 | C84: 52008 | D84: 1144 | E84: 2.152317881 | F84: 31089 | G84: 30301 | H84: 788 | I84: 2.534658561 | J84: 2.7 | K84: 3.8
A85: 1999-12-01 | B85: 52442 | C85: 51207 | D85: 1235 | E85: 2.354982647 | F85: 31044 | G85: 29835 | H85: 1209 | I85: 3.894472362 | J85: 2.7 | K85: 3.7
A86: 2000-01-01 | B86: 52236 | C86: 50604 | D86: 1632 | E86: 3.124282104 | F86: 29835 | G86: 28224 | H86: 1611 | I86: 5.399698341 | J86: 3.5 | K86: 4.5
A87: 2000-02-01 | B87: 53442 | C87: 51653 | D87: 1789 | E87: 3.347554358 | F87: 30598 | G87: 28809 | H87: 1789 | I87: 5.846787372 | J87: 4 | K87: 4.4
A88: 2000-03-01 | B88: 54020 | C88: 51900 | D88: 2120 | E88: 3.924472418 | F88: 30740 | G88: 28947 | H88: 1793 | I88: 5.832791152 | J88: 4.1 | K88: 4.3
A89: 2000-04-01 | B89: 53641 | C89: 51880 | D89: 1761 | E89: 3.28293656 | F89: 30224 | G89: 28935 | H89: 1289 | I89: 4.264822657 | J89: 3.3 | K89: 3.7
A90: 2000-05-01 | B90: 53453 | C90: 51720 | D90: 1733 | E90: 3.242100537 | F90: 29870 | G90: 28847 | H90: 1023 | I90: 3.424840978 | J90: 3.2 | K90: 3.8
A91: 2000-06-01 | B91: 53668 | C91: 51600 | D91: 2068 | E91: 3.853320414 | F91: 29938 | G91: 28780 | H91: 1158 | I91: 3.867993854 | J91: 3.8 | K91: 4.1
A92: 2000-07-01 | B92: 53610 | C92: 51795 | D92: 1815 | E92: 3.385562395 | F92: 29939 | G92: 28888 | H92: 1051 | I92: 3.510471292 | J92: 3.5 | K92: 4.2
A93: 2000-08-01 | B93: 52759 | C93: 51036 | D93: 1723 | E93: 3.265793514 | F93: 29466 | G93: 28465 | H93: 1001 | I93: 3.397135682 | J93: 3.4 | K93: 4.1
A94: 2000-09-01 | B94: 52899 | C94: 51541 | D94: 1358 | E94: 2.567156279 | F94: 29593 | G94: 28746 | H94: 847 | I94: 2.862163349 | J94: 2.9 | K94: 3.8
A95: 2000-10-01 | B95: 53642 | C95: 52412 | D95: 1230 | E95: 2.292979382 | F95: 30040 | G95: 29232 | H95: 808 | I95: 2.689747004 | J95: 2.7 | K95: 3.6
A96: 2000-11-01 | B96: 53703 | C96: 52216 | D96: 1487 | E96: 2.768932834 | F96: 30343 | G96: 29123 | H96: 1220 | I96: 4.020696701 | J96: 3.1 | K96: 3.7
A97: 2000-12-01 | B97: 53521 | C97: 51953 | D97: 1568 | E97: 2.929691149 | F97: 30425 | G97: 28976 | H97: 1449 | I97: 4.762530813 | J97: 3.2 | K97: 3.7
A98: 2001-01-01 | B98: 52392 | C98: 50437 | D98: 1955 | E98: 3.731485723 | F98: 30203 | G98: 28256 | H98: 1947 | I98: 6.446379499 | J98: 4.2 | K98: 4.7
A99: 2001-02-01 | B99: 53595 | C99: 51283 | D99: 2312 | E99: 4.313835246 | F99: 30881 | G99: 28731 | H99: 2150 | I99: 6.962209773 | J99: 4.8 | K99: 4.6
A100: 2001-03-01 | B100: 53831 | C100: 51490 | D100: 2341 | E100: 4.348795304 | F100: 30941 | G100: 28846 | H100: 2095 | I100: 6.770951165 | J100: 5 | K100: 4.5
A101: 2001-04-01 | B101: 53244 | C101: 51117 | D101: 2127 | E101: 3.994816317 | F101: 30537 | G101: 28638 | H101: 1899 | I101: 6.218685529 | J101: 4.5 | K101: 4.2
A102: 2001-05-01 | B102: 54154 | C102: 52345 | D102: 1809 | E102: 3.340473465 | F102: 30666 | G102: 29325 | H102: 1341 | I102: 4.37292115 | J102: 4 | K102: 4.1
A103: 2001-06-01 | B103: 54539 | C103: 52231 | D103: 2308 | E103: 4.2318341 | F103: 30782 | G103: 29261 | H103: 1521 | I103: 4.941199402 | J103: 4.6 | K103: 4.7
A104: 2001-07-01 | B104: 54420 | C104: 52472 | D104: 1948 | E104: 3.579566336 | F104: 30668 | G104: 29396 | H104: 1272 | I104: 4.147645755 | J104: 4.2 | K104: 4.7
A105: 2001-08-01 | B105: 54480 | C105: 52287 | D105: 2193 | E105: 4.025330396 | F105: 30844 | G105: 29293 | H105: 1551 | I105: 5.02853067 | J105: 4.2 | K105: 4.9
A106: 2001-09-01 | B106: 54319 | C106: 52450 | D106: 1869 | E106: 3.440784992 | F106: 30659 | G106: 29384 | H106: 1275 | I106: 4.158648358 | J106: 3.8 | K106: 4.7
A107: 2001-10-01 | B107: 54669 | C107: 52692 | D107: 1977 | E107: 3.61630906 | F107: 30881 | G107: 29520 | H107: 1361 | I107: 4.407240698 | J107: 4.1 | K107: 5
A108: 2001-11-01 | B108: 54831 | C108: 52615 | D108: 2216 | E108: 4.041509365 | F108: 31092 | G108: 29477 | H108: 1615 | I108: 5.19426219 | J108: 4.6 | K108: 5.3
A109: 2001-12-01 | B109: 54217 | C109: 51965 | D109: 2252 | E109: 4.153678735 | F109: 31195 | G109: 29112 | H109: 2083 | I109: 6.67735214 | J109: 4.8 | K109: 5.4
A110: 2002-01-01 | B110: 52187 | C110: 49508 | D110: 2679 | E110: 5.133462357 | F110: 30400 | G110: 27833 | H110: 2567 | I110: 8.444078947 | J110: 5.9 | K110: 6.3
A111: 2002-02-01 | B111: 54133 | C111: 51151 | D111: 2982 | E111: 5.50865461 | F111: 31577 | G111: 28757 | H111: 2820 | I111: 8.930550717 | J111: 6.4 | K111: 6.1
A112: 2002-03-01 | B112: 53487 | C112: 50541 | D112: 2946 | E112: 5.50788042 | F112: 31177 | G112: 28414 | H112: 2763 | I112: 8.862302338 | J112: 6.4 | K112: 6.1
A113: 2002-04-01 | B113: 53810 | C113: 51110 | D113: 2700 | E113: 5.017654711 | F113: 31284 | G113: 28734 | H113: 2550 | I113: 8.151131569 | J113: 5.8 | K113: 5.7
A114: 2002-05-01 | B114: 53562 | C114: 51330 | D114: 2232 | E114: 4.167133415 | F114: 30706 | G114: 28858 | H114: 1848 | I114: 6.018367746 | J114: 5 | K114: 5.5
A115: 2002-06-01 | B115: 54306 | C115: 51576 | D115: 2730 | E115: 5.027068832 | F115: 30825 | G115: 28995 | H115: 1830 | I115: 5.936739659 | J115: 5.5 | K115: 6
A116: 2002-07-01 | B116: 54445 | C116: 52042 | D116: 2403 | E116: 4.413628432 | F116: 30844 | G116: 29257 | H116: 1587 | I116: 5.14524705 | J116: 5.2 | K116: 5.9
A117: 2002-08-01 | B117: 53910 | C117: 51638 | D117: 2272 | E117: 4.21443146 | F117: 30551 | G117: 29031 | H117: 1520 | I117: 4.975287225 | J117: 4.9 | K117: 5.7
A118: 2002-09-01 | B118: 54085 | C118: 52167 | D118: 1918 | E118: 3.546269761 | F118: 30670 | G118: 29328 | H118: 1342 | I118: 4.375611347 | J118: 4.4 | K118: 5.4
A119: 2002-10-01 | B119: 54511 | C119: 52650 | D119: 1861 | E119: 3.413989837 | F119: 30972 | G119: 29599 | H119: 1373 | I119: 4.433036291 | J119: 4.3 | K119: 5.3
A120: 2002-11-01 | B120: 54671 | C120: 52430 | D120: 2241 | E120: 4.099065318 | F120: 31036 | G120: 29476 | H120: 1560 | I120: 5.026420931 | J120: 4.8 | K120: 5.6
A121: 2002-12-01 | B121: 54335 | C121: 52079 | D121: 2256 | E121: 4.152019877 | F121: 31289 | G121: 29278 | H121: 2011 | I121: 6.427178881 | J121: 5 | K121: 5.7
A122: 2003-01-01 | B122: 52986 | C122: 50212 | D122: 2774 | E122: 5.235345186 | F122: 31199 | G122: 28662 | H122: 2537 | I122: 8.131670887 | J122: 6.2 | K122: 6.5
A123: 2003-02-01 | B123: 54524 | C123: 51542 | D123: 2982 | E123: 5.469151199 | F123: 32195 | G123: 29421 | H123: 2774 | I123: 8.616244759 | J123: 6.7 | K123: 6.4
A124: 2003-03-01 | B124: 54255 | C124: 51274 | D124: 2981 | E124: 5.494424477 | F124: 32017 | G124: 29268 | H124: 2749 | I124: 8.586063654 | J124: 6.6 | K124: 6.2
A125: 2003-04-01 | B125: 54347 | C125: 51631 | D125: 2716 | E125: 4.997515962 | F125: 31790 | G125: 29473 | H125: 2317 | I125: 7.288455489 | J125: 6 | K125: 5.8
A126: 2003-05-01 | B126: 54524 | C126: 51975 | D126: 2549 | E126: 4.675005502 | F126: 31483 | G126: 29668 | H126: 1815 | I126: 5.76501604 | J126: 5.5 | K126: 5.8
A127: 2003-06-01 | B127: 55098 | C127: 51973 | D127: 3125 | E127: 5.671712222 | F127: 31705 | G127: 29667 | H127: 2038 | I127: 6.428008201 | J127: 6.2 | K127: 6.5
A128: 2003-07-01 | B128: 55069 | C128: 52324 | D128: 2745 | E128: 4.984655614 | F128: 31639 | G128: 29868 | H128: 1771 | I128: 5.597522046 | J128: 5.7 | K128: 6.3
A129: 2003-08-01 | B129: 54164 | C129: 51603 | D129: 2561 | E129: 4.728232775 | F129: 31041 | G129: 29456 | H129: 1585 | I129: 5.106149931 | J129: 5.4 | K129: 6
A130: 2003-09-01 | B130: 54301 | C130: 52122 | D130: 2179 | E130: 4.012817444 | F130: 31206 | G130: 29752 | H130: 1454 | I130: 4.659360379 | J130: 4.9 | K130: 5.8
A131: 2003-10-01 | B131: 54837 | C131: 52817 | D131: 2020 | E131: 3.683644255 | F131: 31559 | G131: 30150 | H131: 1409 | I131: 4.464653506 | J131: 4.7 | K131: 5.6
A132: 2003-11-01 | B132: 55037 | C132: 52783 | D132: =B132-C132 -> 2254 | E132: =(D132/B132)*100 -> 4.095426713 | F132: 31715 | G132: 30130 | H132: =F132-G132 -> 1585 | I132: =(H132/F132)*100 -> 4.997635188 | J132: 4.9 | K132: 5.6
A133: 2003-12-01 | B133: 54406 | C133: 52272 | D133: 2134 | E133: 3.922361504 | F133: 31781 | G133: 29838 | H133: 1943 | I133: 6.113715742 | J133: 4.9 | K133: 5.4
A134: 2004-01-01 | B134: 52393 | C134: 49687 | D134: 2706 | E134: 5.164812093 | F134: 31616 | G134: 29206 | H134: 2410 | I134: 7.622722672 | J134: 6 | K134: 6.3
A135: 2004-02-01 | B135: 53778 | C135: 51022 | D135: 2756 | E135: 5.124772212 | F135: 32477 | G135: 29991 | H135: 2486 | I135: 7.654647905 | J135: 6.2 | K135: 6
A136: 2004-03-01 | B136: 53652 | C136: 50798 | D136: 2854 | E136: 5.31946619 | F136: 32360 | G136: 29859 | H136: 2501 | I136: 7.728677379 | J136: 6.3 | K136: 6
A137: 2004-04-01 | B137: 53853 | C137: 51403 | D137: 2450 | E137: 4.549421574 | F137: 32047 | G137: 30215 | H137: 1832 | I137: 5.716603738 | J137: 5.2 | K137: 5.4
A138: 2004-05-01 | B138: 53715 | C138: 51473 | D138: 2242 | E138: 4.173880666 | F138: 31815 | G138: 30256 | H138: 1559 | I138: 4.900204306 | J138: 4.8 | K138: 5.3
A139: 2004-06-01 | B139: 54151 | C139: 51407 | D139: 2744 | E139: 5.067311776 | F139: 31955 | G139: 30217 | H139: 1738 | I139: 5.438898451 | J139: 5.3 | K139: 5.8
A140: 2004-07-01 | B140: 54190 | C140: 51846 | D140: 2344 | E140: 4.325521314 | F140: 31965 | G140: 30476 | H140: 1489 | I140: 4.658219928 | J140: 4.9 | K140: 5.7
A141: 2004-08-01 | B141: 53232 | C141: 50982 | D141: 2250 | E141: 4.226780884 | F141: 31477 | G141: 29968 | H141: 1509 | I141: 4.793976554 | J141: 4.6 | K141: 5.4
A142: 2004-09-01 | B142: 53487 | C142: 51562 | D142: 1925 | E142: 3.599005366 | F142: 31713 | G142: 30308 | H142: 1405 | I142: 4.430359789 | J142: 4.2 | K142: 5.1
A143: 2004-10-01 | B143: 53774 | C143: 51932 | D143: 1842 | E143: 3.425447242 | F143: 31931 | G143: 30526 | H143: 1405 | I143: 4.400112743 | J143: 4.1 | K143: 5.1
A144: 2004-11-01 | B144: 54107 | C144: 52146 | D144: 1961 | E144: 3.624299998 | F144: 32231 | G144: 30652 | H144: 1579 | I144: 4.89901027 | J144: 4.4 | K144: 5.2
A145: 2004-12-01 | B145: 53548 | C145: 51514 | D145: 2034 | E145: 3.798461194 | F145: 32126 | G145: 30280 | H145: 1846 | I145: 5.746124634 | J145: 4.4 | K145: 5.1
A146: 2005-01-01 | B146: 52173 | C146: 49631 | D146: 2542 | E146: 4.872251931 | F146: 32082 | G146: 29720 | H146: 2362 | I146: 7.362383891 | J146: 5.5 | K146: 5.7
A147: 2005-02-01 | B147: 53143 | C147: 50411 | D147: 2732 | E147: 5.140846396 | F147: 32795 | G147: 30188 | H147: 2607 | I147: 7.949382528 | J147: 6 | K147: 5.8
A148: 2005-03-01 | B148: 53090 | C148: 50490 | D148: 2600 | E148: 4.897344133 | F148: 32640 | G148: 30234 | H148: 2406 | I148: 7.371323529 | J148: 5.6 | K148: 5.4
A149: 2005-04-01 | B149: 53661 | C149: 51470 | D149: 2191 | E149: 4.083039824 | F149: 32684 | G149: 30821 | H149: 1863 | I149: 5.700036715 | J149: 4.8 | K149: 4.9
A150: 2005-05-01 | B150: 53975 | C150: 51843 | D150: 2132 | E150: 3.949976841 | F150: 32637 | G150: 31045 | H150: 1592 | I150: 4.877899317 | J150: 4.6 | K150: 4.9
A151: 2005-06-01 | B151: 54613 | C151: 52082 | D151: 2531 | E151: 4.6344277 | F151: 32893 | G151: 31188 | H151: 1705 | I151: 5.183473687 | J151: 4.9 | K151: 5.2
A152: 2005-07-01 | B152: 54799 | C152: 52634 | D152: 2165 | E152: 3.950802022 | F152: 33000 | G152: 31518 | H152: 1482 | I152: 4.490909091 | J152: 4.6 | K152: 5.2
A153: 2005-08-01 | B153: 53994 | C153: 51949 | D153: 2045 | E153: 3.787457866 | F153: 32505 | G153: 31109 | H153: 1396 | I153: 4.294723889 | J153: 4.3 | K153: 4.9
A154: 2005-09-01 | B154: 54348 | C154: 52398 | D154: 1950 | E154: 3.587988518 | F154: 32687 | G154: 31378 | H154: 1309 | I154: 4.004650167 | J154: 4.2 | K154: 4.8
A155: 2005-10-01 | B155: 54928 | C155: 53089 | D155: 1839 | E155: 3.348019225 | F155: 33094 | G155: 31791 | H155: 1303 | I155: 3.937269596 | J155: 4 | K155: 4.6
A156: 2005-11-01 | B156: 54896 | C156: 52843 | D156: 2053 | E156: 3.739798892 | F156: 33126 | G156: 31643 | H156: 1483 | I156: 4.476845982 | J156: 4.5 | K156: 4.8
A157: 2005-12-01 | B157: 54634 | C157: 52664 | D157: 1970 | E157: 3.60581323 | F157: 33485 | G157: 31537 | H157: =F157-G157 -> 1948 | I157: =(H157/F157)*100 -> 5.817530237 | J157: 4.5 | K157: 4.6
A158: 2006-01-01 | B158: 53765 | C158: 51513 | D158: 2252 | E158: 4.188598531 | F158: 32972 | G158: 30813 | H158: =F158-G158 -> 2159 | I158: 6.547980104 | J158: 5.1 | K158: 5.1
A159: 2006-02-01 | B159: 54710 | C159: 52264 | D159: 2446 | E159: 4.47084628 | F159: 33672 | G159: 31264 | H159: =F159-G159 -> 2408 | I159: =(H159/F159)*100 -> 7.151342362 | J159: 5.7 | K159: 5.1
A160: 2006-03-01 | B160: 54781 | C160: 52461 | D160: 2320 | E160: 4.235044997 | F160: 33727 | G160: 31382 | H160: 2345 | I160: 6.952886411 | J160: 5.5 | K160: 4.8
A161: 2006-04-01 | B161: 55466 | C161: 53357 | D161: 2109 | E161: 3.802329355 | F161: 33741 | G161: 31917 | H161: 1824 | I161: 5.405886014 | J161: 4.8 | K161: 4.5
A162: 2006-05-01 | B162: 55853 | C162: 53773 | D162: 2080 | E162: 3.724061375 | F162: 33616 | G162: 32166 | H162: 1450 | I162: 4.31342218 | J162: 4.4 | K162: 4.4
A163: 2006-06-01 | B163: 56255 | C163: 53714 | D163: 2541 | E163: 4.516931828 | F163: 33742 | G163: 32130 | H163: 1612 | I163: 4.777428724 | J163: 4.9 | K163: 4.8
A164: 2006-07-01 | B164: 56573 | C164: 54268 | D164: 2305 | E164: 4.074381772 | F164: 33932 | G164: 32463 | H164: 1469 | I164: 4.329246729 | J164: 4.7 | K164: 5
A165: 2006-08-01 | B165: 55990 | C165: 53765 | D165: 2225 | E165: 3.973923915 | F165: 33635 | G165: 32161 | H165: 1474 | I165: 4.382339825 | J165: 4.5 | K165: 4.6
A166: 2006-09-01 | B166: 55881 | C166: 53827 | D166: 2054 | E166: 3.675667937 | F166: 33510 | G166: 32198 | H166: 1312 | I166: 3.915249179 | J166: 4.1 | K166: 4.4
A167: 2006-10-01 | B167: 56602 | C167: 54626 | D167: 1976 | E167: 3.491042719 | F167: 33993 | G167: 32676 | H167: 1317 | I167: 3.874327067 | J167: 3.9 | K167: 4.1
A168: 2006-11-01 | B168: 57045 | C168: 55014 | D168: 2031 | E168: 3.560347094 | F168: 34416 | G168: 32909 | H168: 1507 | I168: 4.378777313 | J168: 4.3 | K168: 4.3
A169: 2006-12-01 | B169: 57016 | C169: 54880 | D169: 2136 | E169: 3.746316823 | F169: 34735 | G169: 32828 | H169: 1907 | I169: 5.490139629 | J169: 4.5 | K169: 4.3
A170: 2007-01-01 | B170: 56622 | C170: 54034 | D170: 2588 | E170: 4.57066158 | F170: 33821 | G170: 31491 | H170: 2330 | I170: 6.889210845 | J170: 5.5 | K170: 5
A171: 2007-02-01 | B171: 57154 | C171: 54500 | D171: 2654 | E171: 4.643594499 | F171: 34149 | G171: 31764 | H171: 2385 | I171: 6.984099095 | J171: 5.8 | K171: 4.9
A172: 2007-03-01 | B172: 57072 | C172: 54462 | D172: 2610 | E172: 4.573170732 | F172: 34098 | G172: 31740 | H172: 2358 | I172: 6.915361605 | J172: 5.5 | K172: 4.5
A173: 2007-04-01 | B173: 57214 | C173: 54784 | D173: 2430 | E173: 4.247212221 | F173: 34122 | G173: 31929 | H173: 2193 | I173: 6.426938632 | J173: 5.1 | K173: 4.3
A174: 2007-05-01 | B174: 57350 | C174: 54999 | D174: 2351 | E174: 4.099389712 | F174: 33753 | G174: 32054 | H174: 1699 | I174: 5.033626641 | J174: 4.6 | K174: 4.3
A175: 2007-06-01 | B175: 57823 | C175: 55007 | D175: 2816 | E175: 4.870034415 | F175: 33731 | G175: 32057 | H175: 1674 | I175: 4.962793869 | J175: 5.1 | K175: 4.7
A176: 2007-07-01 | B176: 58087 | C176: 55652 | D176: 2435 | E176: 4.19198788 | F176: 34089 | G176: 32434 | H176: 1655 | I176: 4.854938543 | J176: 4.7 | K176: 4.9
A177: 2007-08-01 | B177: 57408 | C177: 55095 | D177: 2313 | E177: 4.029055184 | F177: 33565 | G177: 32110 | H177: 1455 | I177: 4.334872635 | J177: 4.5 | K177: 4.6
A178: 2007-09-01 | B178: 57446 | C178: 55311 | D178: 2135 | E178: 3.716533788 | F178: 33576 | G178: 32235 | H178: 1341 | I178: 3.993924232 | J178: 4.2 | K178: 4.5
A179: 2007-10-02 | B179: 57703 | C179: 55746 | D179: 1957 | E179: 3.391504774 | F179: 33745 | G179: 32489 | H179: 1256 | I179: 3.722032894 | J179: 4 | K179: 4.4
A180: 2007-11-01 | B180: 57940 | C180: 56004 | D180: 1936 | E180: 3.341387642 | F180: 34014 | G180: 32640 | H180: 1374 | I180: 4.039513142 | J180: 4.1 | K180: 4.5
A181: 2007-12-01 | B181: 57633 | C181: 55634 | D181: 1999 | E181: 3.46849895 | F181: 34111 | G181: 32423 | H181: 1688 | I181: 4.948550321 | J181: 4.3 | K181: 4.8
A182: 2008-01-01 | B182: 56950 | C182: 54508 | D182: 2442 | E182: 4.287971905 | F182: 33587 | G182: 31510 | H182: =F182-G182 -> 2077 | I182: 6.183940215 | J182: 5 | K182: 5.4
A183: 2008-02-01 | B183: 57373 | C183: 54964 | D183: 2409 | E183: 4.198839175 | F183: 33886 | G183: 31774 | H183: 2112 | I183: 6.232662456 | J183: 5.2 | K183: 5.2
A184: 2008-03-01 | B184: 57180 | C184: 54735 | D184: 2445 | E184: 4.275970619 | F184: 33657 | G184: 31642 | H184: 2015 | I184: 5.986867516 | J184: 5.1 | K184: 5.2
A185: 2008-04-01 | B185: 57368 | C185: 55327 | D185: 2041 | E185: 3.557732534 | F185: 33722 | G185: 31985 | H185: 1737 | I185: 5.150940039 | J185: 4.3 | K185: 4.8
A186: 2008-05-01 | B186: 56942 | C186: 54904 | D186: 2038 | E186: 3.579080468 | F186: 33070 | G186: 31739 | H186: 1331 | I186: 4.024795888 | J186: 4.2 | K186: 5.2
A187: 2008-06-01 | B187: 57551 | C187: 54976 | D187: 2575 | E187: 4.474292367 | F187: 33367 | G187: 31782 | H187: 1585 | I187: 4.750202296 | J187: 4.8 | K187: 5.7
A188: 2008-07-01 | B188: 57739 | C188: 55403 | D188: 2336 | E188: 4.045792272 | F188: 33476 | G188: 32028 | H188: 1448 | I188: 4.325486916 | J188: 4.6 | K188: 6
A189: 2008-08-01 | B189: 56562 | C189: 54274 | D189: 2288 | E189: 4.045118631 | F189: 32797 | G189: 31376 | H189: 1421 | I189: 4.332713358 | J189: 4.7 | K189: 6.1
A190: 2008-09-01 | B190: 56252 | C190: 54186 | D190: 2066 | E190: 3.672758302 | F190: 32699 | G190: 31325 | H190: 1374 | I190: 4.201963363 | J190: 4.4 | K190: 6
A191: 2008-10-01 | B191: 56664 | C191: 54553 | D191: 2111 | E191: 3.725469434 | F191: 32969 | G191: 31537 | H191: 1432 | I191: 4.343474173 | J191: 4.5 | K191: 6.1
A192: 2008-11-01 | B192: 56825 | C192: 54371 | D192: 2454 | E192: 4.318521777 | F192: 33311 | G192: 31432 | H192: 1879 | I192: 5.640779322 | J192: 5.3 | K192: 6.5
A193: 2008-12-01 | B193: 56419 | C193: 53648 | D193: 2771 | E193: 4.911465995 | F193: 33397 | G193: 31014 | H193: 2383 | I193: 7.135371441 | J193: 6 | K193: 7.1
A194: 2009-01-09 | B194: 55458 | C194: 51960 | D194: 3498 | E194: 6.307475928 | F194: 32837 | G194: 29773 | H194: 3064 | I194: 9.330937662 | J194: 7.8 | K194: 8.5
A195: 2009-02-09 | B195: 56598 | C195: 52462 | D195: 4136 | E195: 7.307678717 | F195: 33465 | G195: 30060 | H195: 3405 | I195: 10.1748095 | J195: 8.9 | K195: 8.9
A196: 2009-03-09 | B196: 56693 | C196: 52319 | D196: =B196-C196 -> 4374 | E196: 7.715238213 | F196: 33748 | G196: 29980 | H196: 3768 | I196: =(H196/F196)*100 -> 11.16510608 | J196: 9.5 | K196: 9
A197: 2009-04-09 | B197: 57386 | C197: 53514 | D197: 3872 | E197: 6.74729028 | F197: 33698 | G197: 30663 | H197: 3035 | I197: 9.006469227 | J197: 8.9 | K197: 8.6
A198: 2009-05-09 | B198: 56978 | C198: 53013 | D198: 3965 | E198: 6.958826214 | F198: 33161 | G198: 30376 | H198: 2785 | I198: 8.398419831 | J198: 8.8 | K198: 9.1
A199: 2009-06-09 | B199: 57402 | C199: 52854 | D199: 4548 | E199: 7.923068883 | F199: 33191 | G199: 30286 | H199: 2905 | I199: 8.752372631 | J199: 9.4 | K199: 9.7
A200: 2009-07-09 | B200: 58038 | C200: 53871 | D200: 4167 | E200: 7.179778766 | F200: 33531 | G200: 30869 | H200: 2662 | I200: 7.938922191 | J200: 9.1 | K200: 9.7
... 77 more rows
